bitfinex/quotes_SOLUSD_20250912
["timestamp","ask_amount","ask_price","bid_price","bid_amount"]
[1757684925109,9.85788968,238.88,238.76,13.59559401]
[1757684925425,9.85788968,238.83,238.8,26.0]
[1757684925619,9.85788968,238.83,238.74,3.35092569]
[1757684925620,0.67,238.82,238.75,13.59559401]
[1757684925818,0.67,238.82,238.76,33.12]
[1757684926020,0.67,238.82,238.79,26.0]
[1757684926206,0.67,238.82,238.8,33.12]
[1757684926403,0.67,238.81,238.8,33.12]
[1757684926805,10.52788968,238.81,238.8,33.12]
[1757684928518,14.71531901,238.81,238.8,33.12]
[1757684928912,14.71531901,238.81,238.69,0.03]
[1757684929114,14.71531901,238.81,238.7,23.36]
[1757684929115,9.85788968,238.76,238.7,23.36]
[1757684929323,0.67,238.75,238.7,23.36]
[1757684929519,0.67,238.74,238.7,23.36]
[1757684929730,9.85788968,238.76,238.73,26.0]
[1757684929911,9.85788968,238.76,238.74,33.12]
[1757684930247,0.67,238.75,238.74,33.12]
[1757684930410,0.67,238.78,238.74,33.12]
[1757684930611,0.67,238.77,238.74,33.12]
[1757684931216,0.67,238.77,238.72,3.35120564]
[1757684931217,0.67,238.77,238.72,26.0]
[1757684931427,0.67,238.79,238.72,26.0]
[1757684931608,0.67,238.79,238.73,33.12]
[1757684931930,0.67,238.83,238.76,26.0]
[1757684932314,9.85788968,238.85,238.77,33.12]
[1757684932523,0.67,238.84,238.77,33.12]
[1757684932832,10.52788968,238.83,238.78,33.12]
[1757684933034,0.67,238.82,238.78,33.12]
[1757684933404,10.52788968,238.81,238.74,26.0]
[1757684933623,0.67,238.8,238.75,33.12]
[1757684933814,0.67,238.79,238.76,33.12]
[1757684934339,0.67,238.82,238.77,33.12]
[1757684934646,0.67,238.81,238.77,33.12]
[1757684934816,0.67,238.8,238.74,26.0]
[1757684935017,0.67,238.8,238.75,33.12]
[1757684935225,0.67,238.8,238.76,33.12]
[1757684935744,0.69,238.79,238.77,33.12]
[1757684935912,4.18726869,238.82,238.71,26.0]
[1757684936115,9.85788968,238.77,238.72,33.12]
[1757684936645,9.85788968,238.73,238.69,0.03]
[1757684936940,9.85788968,238.71,238.69,0.03]
[1757684937120,14.65968585,238.75,238.7,33.12]
[1757684937305,9.85788968,238.71,238.7,33.12]
[1757684937711,10.54788968,238.71,238.7,33.12]
[1757684938125,10.54788968,238.71,238.69,0.03]
[1757684938322,4.18848167,238.75,238.7,33.12]
[1757684938528,9.85788968,238.71,238.7,33.12]
[1757684938934,10.54788968,238.71,238.7,33.12]
[1757684939811,0.69,238.71,238.7,33.12]
[1757684940116,10.54788968,238.71,238.7,33.12]
[1757684940322,0.69,238.71,238.7,33.12]
[1757684940527,26.0,238.79,238.7,33.12]
[1757684940528,9.85788968,238.73,238.7,33.12]
[1757684940722,0.69,238.72,238.7,33.12]
[1757684941321,9.85788968,238.74,238.7,33.12]
[1757684941535,10.54788968,238.74,238.7,33.12]
[1757684941914,0.69,238.74,238.7,33.12]
[1757684942115,0.69,238.73,238.69,0.03]
[1757684942314,9.85788968,238.71,238.69,0.03]
[1757684942541,9.85788968,238.71,238.7,33.12]
[1757684942729,10.54788968,238.71,238.7,33.12]
[1757684943410,10.54788968,238.71,238.69,0.03]
[1757684943618,10.54788968,238.71,238.7,33.12]
[1757684943847,0.69,238.71,238.7,33.12]
[1757684944542,9.85788968,238.73,238.7,33.12]
[1757684944750,10.54788968,238.72,238.7,33.12]
[1757684944948,9.85788968,238.72,238.7,33.12]
[1757684945124,0.69,238.71,238.7,33.12]
[1757684945666,10.54788968,238.71,238.69,0.03]
[1757684945824,14.65969238,238.75,238.7,33.12]
[1757684946162,9.85788968,238.71,238.7,33.12]
[1757684947043,9.85788968,238.74,238.7,33.12]
[1757684947837,26.44948557,238.81,238.71,33.82]
[1757684947838,0.69,238.78,238.71,33.82]
[1757684948031,9.85788968,238.78,238.71,114.72]
[1757684948230,9.85788968,238.78,238.72,0.7]
[1757684948422,0.69,238.81,238.75,26.0]
[1757684948625,0.69,238.81,238.76,33.12]
[1757684949026,9.85788968,238.83,238.76,33.82]
[1757684949445,9.85788968,238.82,238.76,33.82]
[1757684950425,6.48591518,238.83,238.76,33.82]
[1757684950620,6.48591518,238.83,238.76,37.17061908]
[1757684950823,6.48591518,238.83,238.76,33.82]
[1757684951747,4.87695484,238.84,238.76,33.12]
[1757684951937,6.48591518,238.81,238.76,33.12]
[1757684952324,6.48591518,238.84,238.77,0.7]
[1757684953250,6.48591518,238.84,238.77,4.05048084]
[1757684953454,6.48591518,238.83,238.77,0.7]
[1757684953630,6.48591518,238.82,238.77,0.7]
[1757684953834,6.48591518,238.79,238.75,26.0]
[1757684954040,7.17591518,238.79,238.78,33.12]
[1757684954254,6.48591518,238.8,238.78,33.12]
[1757684954449,4.18663812,238.86,238.78,33.12]
[1757684954658,6.48591518,238.82,238.78,114.02]
[1757684956556,0.06,238.82,238.78,114.02]
[1757684956756,0.06,238.82,238.79,0.7]
[1757684956966,0.06,238.82,238.81,29.34994346]
[1757684957142,0.06,238.82,238.81,62.46994346]
[1757684957345,0.06,238.82,238.81,63.16994346]
[1757684958051,0.06,238.82,238.81,59.82]
[1757684958238,0.06,238.82,238.81,63.16994346]
[1757684958442,0.06,238.82,238.81,157.66553747]
[1757684960341,0.06,238.82,238.81,157.64553747]
[1757684960562,0.16,238.89,238.86,26.0]
[1757684960866,0.16,238.89,238.87,33.1]
[1757684961755,0.16,238.89,238.88,59.1]
[1757684963466,0.85,238.89,238.86,80.84]
[1757684963654,0.16,238.89,238.88,33.1]
[1757684964950,0.16,238.89,238.84,26.0]
[1757684965267,0.71,238.88,238.87,26.0]
[1757684965462,0.71,238.88,238.87,59.1]
[1757684965659,0.71,238.88,238.87,33.1]
[1757684965842,7.19591518,238.88,238.87,33.1]
[1757684966045,11.38218604,238.88,238.84,80.9]
[1757684966246,6.48591518,238.85,238.84,80.9]
[1757684966475,6.48591518,238.85,238.84,114.0]
[1757684966655,7.19591518,238.85,238.84,80.9]
[1757684966861,7.19591518,238.85,238.84,114.0]
[1757684967061,7.19591518,238.85,238.84,80.9]
[1757684967272,11.38264325,238.85,238.84,33.1]
[1757684967448,11.38264325,238.85,238.77,80.9]
[1757684967657,6.48591518,238.8,238.77,80.9]
[1757684967974,6.48591518,238.78,238.77,80.9]
[1757684968165,7.19591518,238.78,238.77,114.0]
[1757684968360,7.19591518,238.78,238.72,80.9]
[1757684968560,6.48591518,238.76,238.73,33.1]
[1757684968765,6.48591518,238.76,238.75,26.0]
[1757684968978,6.48591518,238.76,238.73,80.9]
[1757684969277,6.48591518,238.76,238.75,33.1]
[1757684970179,6.48591518,238.76,238.73,80.9]
[1757684970365,6.48591518,238.74,238.73,80.9]
[1757684970564,6.48591518,238.74,238.73,113.98]
[1757684970774,6.48591518,238.74,238.73,80.9]
[1757684970950,6.48591518,238.74,238.73,114.0]
[1757684971355,6.48591518,238.75,238.73,114.0]
[1757684971775,7.19591518,238.74,238.7,80.93]
[1757684971975,6.48591518,238.72,238.71,33.1]
[1757684972172,6.48591518,238.73,238.71,33.1]
[1757684972360,6.48591518,238.74,238.71,33.1]
[1757684972761,6.48591518,238.75,238.71,33.1]
[1757684973081,7.19591518,238.76,238.71,33.1]
[1757684973381,6.48591518,238.74,238.7,0.03]
[1757684973556,6.48591518,238.72,238.71,33.08]
[1757684974177,4.89869302,238.74,238.71,33.08]
[1757684974480,6.48591518,238.72,238.71,33.08]
[1757684974663,6.48591518,238.73,238.71,33.08]
[1757684974856,6.48591518,238.73,238.7,0.03]
[1757684975060,0.71,238.78,238.71,33.1]
[1757684975263,6.48591518,238.76,238.71,114.0]
[1757684975459,7.19591518,238.81,238.74,26.0]
[1757684975673,7.19591518,238.81,238.75,33.08]
[1757684975986,6.48591518,238.81,238.75,33.08]
[1757684976175,4.89660985,238.86,238.76,0.66]
[1757684976356,6.48591518,238.82,238.77,33.08]
[1757684976563,6.48591518,238.8,238.76,80.9]
[1757684976786,6.48591518,238.8,238.74,26.0]
[1757684976787,7.19591518,238.8,238.77,33.1]
[1757684977089,6.48591518,238.8,238.78,33.1]
[1757684977661,6.48591518,238.81,238.78,33.1]
[1757684977864,7.19591518,238.81,238.78,33.1]
[1757684978075,6.48591518,238.79,238.74,106.9]
[1757684978279,10.46748582,238.84,238.75,33.08]
[1757684978280,6.48591518,238.78,238.75,33.08]
[1757684978582,6.48591518,238.77,238.75,33.08]
[1757684978787,6.48591518,238.78,238.75,33.08]
[1757684978990,6.48591518,238.79,238.75,33.08]
[1757684979161,12.66060817,238.88,238.75,33.08]
[1757684979162,4.18655279,238.86,238.76,0.66]
[1757684979366,6.48591518,238.84,238.77,33.08]
[1757684980187,6.48591518,238.84,238.77,33.11]
[1757684980381,0.06,238.82,238.77,33.11]
[1757684980577,6.54591518,238.82,238.77,33.11]
[1757684980774,6.54591518,238.82,238.77,33.77]
[1757684980975,6.54591518,238.82,238.78,33.08]
[1757684981682,0.06,238.82,238.81,26.0]
[1757684981991,0.06,238.82,238.81,63.08994346]
[1757684982370,0.06,238.82,238.81,76.68553747]
[1757684983071,0.06,238.82,238.81,157.58553747]
[1757684983377,1e-08,238.82,238.81,157.58553747]
[1757684986087,1e-08,238.82,238.81,121.15559401]
[1757684986276,1e-08,238.82,238.81,154.23559401]
[1757684986681,1e-08,238.82,238.81,121.15559401]
[1757684986991,1e-08,238.82,238.81,154.23559401]
[1757684987782,0.16,238.89,238.86,26.0]
[1757684987984,0.16,238.89,238.87,33.08]
[1757684989076,0.16,238.89,238.88,33.08]
[1757684989394,0.16,238.89,238.86,106.89999999]
[1757684989598,0.71,238.88,238.86,106.89999999]
[1757684989796,6.48591518,238.88,238.87,33.08]
[1757684990394,7.19591518,238.88,238.86,80.89999999]
[1757684990603,6.48591518,238.88,238.87,33.08]
[1757684991179,7.19591518,238.88,238.77,0.03]
[1757684991489,6.48591518,238.78,238.77,0.03]
[1757684991690,6.48591518,238.82,238.77,33.09]
[1757684992090,6.48591518,238.83,238.77,33.09]
[1757684992291,6.48591518,238.82,238.77,33.09]
[1757684992502,7.19591518,238.82,238.77,33.09]
[1757684992694,0.71,238.81,238.77,33.09]
[1757684993402,0.71,238.8,238.77,33.09]
[1757684993978,6.48591518,238.82,238.77,33.09]
[1757684994290,0.71,238.81,238.77,33.09]
[1757684995004,0.71,238.8,238.77,33.09]
[1757684995216,6.48591518,238.81,238.77,33.09]
[1757684995408,0.71,238.81,238.77,33.09]
[1757684995909,0.71,238.81,238.77,0.03]
[1757684996404,0.71,238.81,238.78,33.06]
[1757684996601,0.71,238.8,238.78,113.95999999]
[1757684996904,6.48591518,238.82,238.78,113.95999999]
[1757684997282,6.48591518,238.8,238.78,80.89999999]
[1757684997505,10.46632381,238.87,238.77,0.03]
[1757684997506,7.19591518,238.79,238.77,0.03]
[1757684997814,6.48591518,238.78,238.77,33.09]
[1757684998013,7.19591518,238.78,238.77,33.09]
[1757684998790,7.19591518,238.78,238.77,0.03]
[1757684999792,0.71,238.81,238.77,0.03]
[1757685000102,4.89693265,238.84,238.77,0.03]
[1757685000407,7.19591518,238.8,238.77,0.03]
[1757685000603,0.71,238.8,238.77,0.03]
[1757685000809,6.48591518,238.81,238.77,0.03]
[1757685000985,7.19591518,238.81,238.77,0.03]
[1757685001582,6.48591518,238.81,238.78,33.06]
[1757685001783,6.48591518,238.79,238.77,0.03]
[1757685002007,6.48591518,238.78,238.77,0.03]
[1757685002315,7.19591518,238.78,238.77,0.03]
[1757685002648,11.38387062,238.78,238.77,0.03]
[1757685002980,0.71,238.78,238.77,0.03]
[1757685003186,7.19591518,238.78,238.77,0.03]
[1757685004720,7.19591518,238.78,238.77,33.09]
[1757685004925,6.48591518,238.8,238.77,33.09]
[1757685005231,7.19591518,238.8,238.77,33.09]
[1757685005430,7.19591518,238.79,238.77,0.03]
[1757685005631,6.48591518,238.79,238.78,33.06]
[1757685005829,6.54591518,238.82,238.78,33.06]
[1757685006130,7.25591518,238.82,238.78,33.06]
[1757685006428,7.19591518,238.81,238.78,33.06]
[1757685006799,7.19591518,238.8,238.78,33.06]
[1757685007131,7.19591518,238.79,238.78,33.06]
[1757685008203,7.19591518,238.79,238.77,0.03]
[1757685008423,10.67387062,238.78,238.77,0.03]
[1757685008603,6.48591518,238.78,238.77,0.03]
[1757685008812,11.38387062,238.78,238.77,0.03]
[1757685009016,7.19591518,238.78,238.77,0.03]
[1757685009215,11.38387062,238.78,238.77,0.03]
[1757685010517,28.37014378,238.78,238.77,0.03]
[1757685012227,13.59559401,238.77,238.72,0.03]
[1757685012402,27.66102091,238.73,238.72,0.03]
[1757685012916,28.37102091,238.73,238.72,0.03]
[1757685014642,24.18218834,238.73,238.72,0.03]
[1757685014816,28.37102091,238.73,238.72,0.03]
[1757685016418,17.78477753,238.71,238.7,0.03]
[1757685016735,39.59559401,238.7,238.69,0.03]
[1757685017029,40.30559401,238.7,238.69,0.03]
[1757685017333,50.18218834,238.7,238.69,0.03]
[1757685018150,70.18218834,238.7,238.67,0.03]
[1757685018315,23.47218834,238.68,238.67,0.03]
[1757685018637,60.72189841,238.68,238.67,0.03]
[1757685018831,13.59559401,238.67,238.66,0.03]
[1757685019035,23.47218834,238.67,238.66,0.03]
[1757685019224,24.18218834,238.67,238.66,0.03]
[1757685020940,28.37207395,238.67,238.66,0.03]
[1757685021311,13.59559401,238.63,238.58,0.2]
[1757685021532,23.47218834,238.62,238.58,0.2]
[1757685021739,24.18218834,238.62,238.58,0.2]
[1757685022832,28.37295189,238.62,238.58,0.2]
[1757685024837,61.45295189,238.62,238.58,0.2]
[1757685025036,61.45295189,238.62,238.61,0.13]
[1757685025931,61.45295189,238.62,238.58,0.2]
[1757685026145,0.72,238.61,238.58,0.2]
[1757685026449,49.47218834,238.59,238.58,0.2]
[1757685026814,53.66347883,238.59,238.58,0.2]
[1757685027228,9.87659433,238.6,238.58,0.92]
[1757685027430,9.87659433,238.61,238.59,0.72]
[1757685027615,9.87659433,238.6,238.58,0.2]
[1757685028417,9.87659433,238.6,238.59,0.72]
[1757685029341,9.87659433,238.61,238.59,0.72]
[1757685029738,4.19020201,238.66,238.58,0.2]
[1757685030050,9.87659433,238.64,238.6,0.72]
[1757685030230,9.87659433,238.63,238.6,0.72]
[1757685030938,9.87659433,238.63,238.61,0.72]
[1757685031553,9.87659433,238.63,238.62,0.72]
[1757685031744,9.87659433,238.64,238.62,0.72]
[1757685032448,9.87659433,238.63,238.62,0.72]
[1757685032747,4.18997675,238.67,238.58,0.2]
[1757685032959,9.87659433,238.63,238.59,0.72]
[1757685033145,9.87659433,238.63,238.6,0.72]
[1757685033338,9.87659433,238.63,238.58,0.2]
[1757685033339,9.87659433,238.63,238.61,0.72]
[1757685033758,9.87659433,238.63,238.59,0.72]
[1757685034052,9.87659433,238.61,238.58,0.2]
[1757685034437,4.01334193,238.61,238.58,0.2]
[1757685034850,4.01334193,238.61,238.58,0.92]
[1757685035346,4.01334193,238.61,238.59,0.72]
[1757685035531,4.01334193,238.61,238.58,0.2]
[1757685035729,4.01334193,238.61,238.59,0.72]
[1757685035956,4.01334193,238.62,238.6,0.72]
[1757685036130,13.59559401,238.66,238.6,0.72]
[1757685036332,4.01334193,238.62,238.6,0.72]
[1757685036741,4.01334193,238.62,238.58,0.2]
[1757685036742,4.01334193,238.62,238.58,0.92]
[1757685037052,4.01334193,238.62,238.59,0.72]
[1757685037364,4.01334193,238.61,238.58,0.2]
[1757685037561,4.01334193,238.61,238.58,0.92]
[1757685038033,13.02197227,238.69,238.59,0.72]
[1757685038233,4.01334193,238.67,238.59,107.62]
[1757685038451,4.01334193,238.67,238.6,0.72]
[1757685038659,4.01334193,238.66,238.6,0.72]
[1757685038868,4.18848167,238.75,238.6,0.72]
[1757685039081,4.01334193,238.68,238.6,85.39192208]
[1757685039242,4.01334193,238.69,238.63,26.0]
[1757685039441,13.59559401,238.74,238.64,33.78]
[1757685039680,13.59559401,238.74,238.65,0.72]
[1757685039681,4.01334193,238.74,238.65,0.72]
[1757685039890,4.01334193,238.74,238.65,81.62]
[1757685040057,4.01334193,238.75,238.66,0.72]
[1757685040375,4.01334193,238.77,238.69,26.0]
[1757685040557,4.01334193,238.77,238.7,33.78]
[1757685040745,4.01334193,238.77,238.71,0.72]
[1757685040943,4.28778381,238.79,238.71,0.72]
[1757685040944,0.1,238.79,238.72,33.06]
[1757685041149,0.1,238.79,238.73,0.72]
[1757685042760,0.1,238.79,238.75,26.0]
[1757685043068,0.1,238.79,238.76,0.72]
[1757685043268,0.1,238.79,238.77,33.06]
[1757685043467,0.1,238.79,238.78,0.72]
[1757685043652,0.1,238.79,238.78,33.06]
[1757685043851,0.1,238.79,238.76,0.72]
[1757685044054,9.87032522,238.78,238.72,0.72]
[1757685044271,9.87032522,238.77,238.73,33.06]
[1757685044475,9.87032522,238.78,238.74,33.78]
[1757685044772,9.87032522,238.75,238.7,0.72]
[1757685044978,9.87032522,238.75,238.71,33.78]
[1757685045270,9.87032522,238.76,238.71,33.78]
[1757685045568,9.87032522,238.77,238.72,0.72]
[1757685045775,0.06,238.76,238.73,33.76]
[1757685046071,9.93032522,238.76,238.74,33.04]
[1757685046276,9.93032522,238.76,238.75,33.04]
[1757685046576,0.06,238.76,238.75,33.04]
[1757685047077,0.06,238.76,238.75,33.76]
[1757685047370,0.06,238.76,238.75,0.72]
[1757685047688,0.06,238.76,238.75,33.76]
[1757685048251,0.06,238.76,238.75,0.72]
[1757685048453,0.06,238.76,238.75,33.76]
[1757685048845,0.06,238.76,238.73,26.0]
[1757685049048,0.06,238.76,238.7,80.9]
[1757685049251,0.06,238.76,238.73,0.72]
[1757685049456,0.06,238.76,238.7,80.9]
[1757685049457,0.06,238.76,238.71,0.72]
[1757685049672,0.06,238.76,238.72,33.76]
[1757685049853,0.06,238.76,238.72,0.72]
[1757685050049,0.06,238.76,238.73,33.04]
[1757685050254,0.06,238.76,238.73,33.76]
[1757685050455,0.06,238.76,238.74,0.72]
[1757685050778,0.06,238.76,238.75,26.0]
[1757685050988,0.06,238.76,238.75,106.9]
[1757685051162,0.06,238.76,238.75,30.4896335]
[1757685051363,0.06,238.76,238.75,111.3896335]
[1757685051558,0.06,238.76,238.75,144.4296335]
[1757685051763,0.06,238.76,238.75,63.5296335]
[1757685051958,0.06,238.76,238.75,144.4296335]
[1757685053478,0.06,238.76,238.75,111.3896335]
[1757685053666,0.06,238.76,238.75,144.4296335]
[1757685053983,0.06,238.76,238.75,158.02522751]
[1757685054971,0.06,238.76,238.75,121.21559401]
[1757685055277,0.06,238.76,238.75,140.64]
[1757685055757,0.06,238.76,238.75,111.80848167]
[1757685055959,0.06,238.76,238.75,144.82848167]
[1757685058175,0.06,238.76,238.75,139.92]
[1757685058873,0.06,238.76,238.75,144.78848167]
[1757685059886,0.06,238.76,238.75,63.88848167]
[1757685060265,0.06,238.76,238.75,59.7]
[1757685061063,0.06,238.76,238.75,59.02]
[1757685061558,0.73,238.76,238.75,33.02]
[1757685061799,0.06,238.76,238.75,33.02]
[1757685063261,0.06,238.76,238.75,33.7]
[1757685063768,0.06,238.76,238.75,37.88848167]
[1757685064275,0.06,238.76,238.75,39.56299763]
[1757685064788,0.06,238.76,238.75,60.69451596]
[1757685064964,0.83,238.79,238.78,26.0]
[1757685065170,0.16,238.79,238.78,139.86]
[1757685065577,0.83,238.79,238.78,139.86]
[1757685066088,5.01778927,238.79,238.78,33.02]
[1757685066262,0.83,238.79,238.78,33.02]
[1757685067682,9.02293429,238.79,238.71,4.18763576]
[1757685067868,4.00515424,238.77,238.63,0.68]
[1757685068071,4.00515424,238.75,238.64,33.0]
[1757685068289,0.67,238.74,238.67,26.0]
[1757685068468,0.67,238.73,238.65,4.63073604]
[1757685068789,4.00515424,238.71,238.66,33.0]
[1757685068989,0.67,238.7,238.66,33.0]
[1757685069288,0.67,238.69,238.67,33.0]
[1757685069490,0.67,238.71,238.67,33.0]
[1757685069699,0.67,238.7,238.67,33.0]
[1757685069903,0.16,238.79,238.67,33.0]
[1757685069904,0.67,238.73,238.67,33.0]
[1757685070206,0.67,238.73,238.67,33.68]
[1757685070496,0.67,238.73,238.67,33.0]
[1757685070696,4.85827902,238.77,238.7,26.0]
[1757685070898,0.67,238.77,238.71,33.0]
[1757685071399,0.67,238.76,238.71,33.0]
[1757685071717,0.67,238.78,238.71,114.52]
[1757685071877,0.16,238.79,238.71,113.84]
[1757685071878,0.67,238.76,238.71,113.84]
[1757685072080,0.67,238.76,238.74,26.0]
[1757685072300,0.16,238.79,238.75,33.0]
[1757685072608,0.16,238.79,238.75,33.68]
[1757685073686,0.16,238.79,238.75,33.0]
[1757685073990,0.83,238.79,238.75,33.0]
[1757685074178,0.16,238.79,238.76,33.0]
[1757685074898,0.16,238.79,238.77,0.68]
[1757685075097,0.16,238.79,238.76,33.0]
[1757685076393,0.16,238.79,238.76,26.0]
[1757685076593,0.67,238.78,238.77,33.0]
[1757685077605,0.67,238.78,238.7,106.84]
[1757685077812,0.67,238.78,238.71,33.0]
[1757685077813,4.85813083,238.77,238.71,33.0]
[1757685078112,0.67,238.76,238.71,33.0]
[1757685078313,0.67,238.75,238.71,33.0]
[1757685078604,0.67,238.74,238.71,33.0]
[1757685078786,0.67,238.73,238.72,33.0]
[1757685080092,4.85883257,238.73,238.72,33.0]
[1757685080805,0.67,238.73,238.72,33.0]
[1757685080976,0.67,238.76,238.72,33.0]
[1757685081178,0.16,238.79,238.72,33.0]
[1757685081503,0.67,238.75,238.72,33.0]
[1757685081698,4.85795544,238.78,238.72,33.0]
[1757685081904,0.16,238.79,238.72,33.0]
[1757685082120,0.83,238.79,238.72,33.0]
[1757685082400,0.16,238.79,238.75,26.0]
[1757685082581,0.83,238.79,238.76,33.0]
[1757685082782,0.67,238.78,238.76,33.0]
[1757685083002,0.16,238.79,238.76,33.0]
[1757685083307,0.67,238.78,238.76,33.0]
[1757685083480,0.67,238.77,238.76,33.0]
[1757685083978,21.81370302,238.77,238.73,33.0]
[1757685084196,0.67,238.76,238.73,33.0]
[1757685084395,0.67,238.75,238.71,80.84]
[1757685084703,0.67,238.74,238.72,33.0]
[1757685085001,0.61721296,238.73,238.72,33.0]
[1757685085187,0.61721296,238.73,238.71,80.84]
[1757685085188,0.61721296,238.73,238.71,12.56]
[1757685085397,6.4852451,238.76,238.71,33.0]
[1757685086099,21.20370302,238.77,238.71,33.0]
[1757685086497,14.71845792,238.77,238.71,33.0]
[1757685087093,0.68,238.76,238.71,33.0]
[1757685087307,0.68,238.75,238.71,33.0]
[1757685087911,0.68,238.74,238.72,33.0]
[1757685088210,0.68,238.73,238.67,0.03]
[1757685088383,0.68,238.73,238.68,33.0]
[1757685088588,0.68,238.72,238.68,33.0]
[1757685088784,0.68,238.71,238.68,33.0]
[1757685088989,6.4852451,238.73,238.68,33.0]
[1757685089296,0.68,238.72,238.68,33.0]
[1757685089506,0.68,238.71,238.68,33.0]
[1757685089709,20.08083911,238.74,238.68,33.0]
[1757685089898,0.68,238.7,238.68,33.0]
[1757685090098,0.68,238.69,238.67,0.03]
[1757685090308,0.68,238.69,238.67,33.03]
[1757685090610,0.68,238.68,238.67,33.03]
[1757685090817,0.68,238.68,238.67,0.03]
[1757685093119,6.4852451,238.49,238.48,0.03]
[1757685093526,7.1652451,238.49,238.48,0.03]
[1757685093896,11.35829302,238.49,238.48,0.03]
[1757685096095,44.95388703,238.49,238.48,0.03]
[1757685097915,78.75388703,238.49,238.48,0.03]
[1757685098223,44.95388703,238.49,238.48,0.03]
[1757685098625,78.75388703,238.49,238.48,0.03]
[1757685098802,80.43191535,238.49,238.48,0.03]
[1757685098994,46.14667025,238.49,238.48,0.03]
[1757685099327,86.43191535,238.49,238.48,0.03]
[1757685099496,84.75388703,238.49,238.48,0.03]
[1757685101218,50.95388703,238.49,238.48,0.03]
[1757685101406,84.73388703,238.49,238.48,0.03]
[1757685101731,84.71388703,238.49,238.48,0.03]
[1757685101897,50.95388703,238.49,238.48,0.03]
[1757685102101,44.46864193,238.49,238.48,0.03]
[1757685102311,50.95388703,238.49,238.48,0.03]
[1757685102702,0.68,238.56,238.48,0.74]
[1757685102903,13.59559401,238.55,238.48,0.74]
[1757685103113,20.08083911,238.55,238.48,0.74]
[1757685103502,13.59559401,238.55,238.48,0.74]
[1757685103803,7.1652451,238.56,238.48,0.74]
[1757685103804,6.4852451,238.57,238.48,0.74]
[1757685104008,13.59559401,238.56,238.48,0.74]
[1757685104518,13.59559401,238.58,238.48,0.74]
[1757685104716,13.59559401,238.56,238.48,0.74]
[1757685104898,13.59559401,238.56,238.48,26.74]
[1757685105313,13.59559401,238.56,238.48,26.03]
[1757685105521,13.59559401,238.56,238.49,0.71]
[1757685105715,13.59559401,238.56,238.49,26.71]
[1757685106003,4.87147851,238.58,238.49,26.71]
[1757685106004,0.68,238.58,238.49,26.71]
[1757685106328,13.59559401,238.6,238.5,0.71]
[1757685106641,6.4852451,238.59,238.5,0.71]
[1757685106808,20.08083911,238.55,238.48,0.03]
[1757685107131,13.59559401,238.56,238.49,0.71]
[1757685108614,13.59559401,238.6,238.5,26.0]
[1757685108814,13.59559401,238.6,238.51,0.71]
[1757685109008,20.08083911,238.6,238.51,0.71]
[1757685109216,26.0,238.55,238.48,0.03]